fUSD/lending_fUSD_20240125
["ID","MTS","AMOUNT","RATE_DAILY","PERIOD"]
[312710114,1706179846177,-301.36826649,0.00023009,2]
[312710115,1706179846189,-483.35778768,0.00023009,2]
[312710116,1706179846208,-8163.35029545,0.00023009,2]
[312710117,1706179846220,-602.2036766,0.00023009,2]
[312710118,1706179846233,-611.705515,0.00023009,2]
[312710119,1706179846244,-19365.45537369,0.00023009,2]
[312710121,1706179846265,-890.66656144,0.00023009,2]
[312710123,1706179846279,-729.0490375,0.00023009,2]
[312710126,1706179846307,-51707.72764725,0.00023009,2]
[312710127,1706179846316,-23681.5477933,0.00023009,2]
[312710128,1706179846325,-12257.5525351,0.00023009,2]
[312710129,1706179846334,-3262.427837,0.00023025,2]
[312710130,1706179846343,-3224.2185166,0.00023041,2]
[312710131,1706179846353,-158.25,0.00023057,2]
[312710132,1706179846362,-302.82,0.00023245,2]
[312710133,1706179846371,-436.02,0.00023273,2]
[312710134,1706179846380,-507.0,0.00023326,2]
[312710135,1706179846389,-346.0,0.000236,2]
[312710136,1706179846398,-202.09913361,0.00024,2]
[312710138,1706179846412,-302.82,0.00024046,2]
[312710140,1706179846421,-162.0,0.00024088,2]
[312710142,1706179846430,-524.11,0.0002423,2]
[312710165,1706179846658,-429.03,0.00024266,2]
[312710166,1706179846669,-207.0,0.00024514,6]
[312710167,1706179846678,-250.0,0.00024658,2]
[312710168,1706179846687,-302.82,0.00024847,2]
[312710169,1706179846697,-153.08397308,0.000249,2]
[312710170,1706179846706,-436.02,0.00024917,2]
[312710171,1706179846715,-570.97,0.00024921,2]
[312710172,1706179846724,-200.0,0.00025,2]
[312710173,1706179846734,-10000.0,0.00025,3]
[312710174,1706179846743,-155.92388187,0.00025,2]
[312710175,1706179846752,-305.05638837,0.00025,2]
[312710176,1706179846761,-509.94504749,0.00025,2]
[312710177,1706179846770,-450.0,0.00025,3]
[312710178,1706179846779,-529.07635029,0.00025,2]
[312710179,1706179846789,-6595.85136414,0.00025354,5]
[312710180,1706179846798,-1987.43244623,0.00025355,2]
[312710181,1706179846807,-500.0,0.00026,2]
[312710182,1706179846816,-524.11,0.00026494,2]
[312710183,1706179846826,-436.02,0.00026561,2]
[312710184,1706179846835,-2246.48,0.00026575,2]
[312710185,1706179846845,-2735.18727085,0.00026757,3]
[312710186,1706179846854,-429.03,0.00026962,2]
[312710187,1706179846863,-500.0,0.00027,3]
[312710188,1706179846873,-207.0,0.00027244,10]
[312710189,1706179846882,-11974.0,0.000273,2]
[312710190,1706179846891,-188.98,0.00027397,2]
[312710191,1706179846900,-470.95,0.00027397,2]
[312710192,1706179846909,-186.35,0.00027397,2]
[312710193,1706179846918,-273.99,0.00027397,2]
[312710194,1706179846927,-178.52,0.000274,2]
[312710195,1706179846935,-178.52,0.000274,2]
[312710196,1706179846944,-153.08397297,0.00027445,2]
[312710197,1706179846953,-3330.0,0.000276,2]
[312710198,1706179846962,-470.95,0.00027686,2]
[312710199,1706179846972,-273.99,0.00027686,2]
[312710200,1706179846981,-570.97,0.0002769,2]
[312710201,1706179846991,-1987.43244623,0.00027809,2]
[312710202,1706179847001,-470.95,0.00027974,2]
[312710203,1706179847015,-273.99,0.00027974,2]
[312710204,1706179847025,-436.02,0.00028205,2]
[312710205,1706179847036,-470.95,0.00028262,2]
[312710206,1706179847048,-273.99,0.00028262,2]
[312710207,1706179847057,-279.791,0.00028429,2]
[312710208,1706179847066,-1358.0,0.00028429,2]
[312710209,1706179847076,-821.093,0.00028429,2]
[312710210,1706179847085,-1857.0,0.00028429,2]
[312710211,1706179847095,-947.0,0.00028429,2]
[312710212,1706179847105,-837.0,0.00028429,2]
[312710213,1706179847114,-1306.796,0.00028429,2]
[312710214,1706179847123,-219.258,0.00028429,2]
[312710215,1706179847133,-1233.0,0.00028429,2]
[312710216,1706179847143,-707.791,0.00028429,2]
[312710217,1706179847153,-426.0,0.00028429,2]
[312710218,1706179847163,-998.0,0.00028429,2]
[312710219,1706179847172,-167.725,0.00028429,2]
[312710220,1706179847182,-1008.622,0.00028429,2]
[312710221,1706179847192,-1138.0,0.00028429,2]
[312710222,1706179847201,-319.0,0.00028429,2]
[312710223,1706179847211,-6918.445,0.00028429,2]
[312710224,1706179847222,-2277.0,0.00028429,2]
[312710225,1706179847231,-257.162,0.00028429,2]
[312710226,1706179847241,-2702.958,0.00028429,2]
[312710227,1706179847251,-1031.0,0.00028429,2]
[312710228,1706179847261,-150.161,0.00028429,2]
[312710229,1706179847270,-180.838,0.00028429,2]
[312710230,1706179847280,-203.959,0.00028429,2]
[312710231,1706179847290,-470.95,0.00028551,2]
[312710232,1706179847300,-273.99,0.00028551,2]
[312710233,1706179847309,-524.11,0.00028758,2]
[312710234,1706179847319,-470.95,0.00028839,2]
[312710235,1706179847328,-273.99,0.00028839,2]
[312710236,1706179847337,-550.0,0.00029,3]
[312710237,1706179847347,-470.95,0.00029128,2]
[312710238,1706179847357,-273.99,0.00029128,2]
[312710239,1706179847366,-470.95,0.00029416,2]
[312710240,1706179847375,-273.99,0.00029416,2]
[312710241,1706179847385,-5000.0,0.00029604,2]
[312710242,1706179847394,-429.03,0.00029658,2]
[312710243,1706179847403,-178.52,0.00029694,2]
[312710244,1706179847412,-500.0,0.00029704,2]
[312710245,1706179847421,-500.0,0.00029704,2]
[312710246,1706179847430,-500.0,0.00029704,2]
[312710247,1706179847440,-500.0,0.00029704,2]
[312710248,1706179847449,-500.0,0.00029704,2]
[312710249,1706179847458,-500.0,0.00029704,2]
[312710250,1706179847469,-500.0,0.00029704,2]
[312710251,1706179847478,-500.0,0.00029704,2]
[312710252,1706179847487,-500.0,0.00029704,2]
[312710253,1706179847496,-500.0,0.00029704,2]
[312710254,1706179847506,-500.0,0.00029704,2]
[312710255,1706179847515,-500.0,0.00029704,2]
[312710256,1706179847524,-500.0,0.00029704,2]
[312710257,1706179847533,-500.0,0.00029704,2]
[312710258,1706179847543,-500.0,0.00029704,2]
[312710259,1706179847552,-500.0,0.00029704,2]
[312710260,1706179847563,-500.0,0.00029704,2]
[312710261,1706179847573,-500.0,0.00029704,2]
[312710262,1706179847582,-500.0,0.00029704,2]
[312710263,1706179847591,-500.0,0.00029704,2]
[312710264,1706179847601,-500.0,0.00029704,2]
[312710265,1706179847610,-500.0,0.00029704,2]
[312710266,1706179847619,-500.0,0.00029704,2]
[312710267,1706179847628,-150.0,0.00029704,2]
[312710268,1706179847637,-500.0,0.00029704,2]
[312710269,1706179847647,-500.0,0.00029704,2]
[312710270,1706179847658,-500.0,0.00029704,2]
[312710271,1706179847666,-470.95,0.00029704,2]
[312710272,1706179847675,-273.99,0.00029704,2]
[312710273,1706179847685,-150.0,0.00029797,2]
[312710274,1706179847698,-500.0,0.00029797,2]
[312710275,1706179847707,-500.0,0.00029797,2]
[312710276,1706179847717,-500.0,0.00029797,2]
[312710277,1706179847726,-500.0,0.00029797,2]
[312710278,1706179847736,-500.0,0.00029797,2]
[312710279,1706179847745,-500.0,0.00029797,2]
[312710280,1706179847755,-500.0,0.00029797,2]
[312710281,1706179847764,-500.0,0.00029797,2]
[312710282,1706179847774,-500.0,0.00029797,2]
[312710283,1706179847783,-500.0,0.00029797,2]
[312710284,1706179847791,-500.0,0.00029797,2]
[312710285,1706179847800,-500.0,0.00029797,2]
[312710286,1706179847810,-500.0,0.00029797,2]
[312710287,1706179847819,-500.0,0.00029797,2]
[312710288,1706179847828,-500.0,0.00029797,2]
[312710289,1706179847838,-500.0,0.00029797,2]
[312710290,1706179847849,-500.0,0.00029797,2]
[312710291,1706179847859,-2893.3224042,0.00029797,2]
[312710292,1706179847869,-128626.8189,0.00029797,2]
[312710293,1706179847878,-10045.5419568,0.00029797,2]
[312710294,1706179847887,-500.0,0.00029817,2]
[312710295,1706179847897,-500.0,0.00029817,2]
[312710296,1706179847906,-500.0,0.00029817,2]
[312710297,1706179847916,-500.0,0.00029817,2]
[312710298,1706179847925,-500.0,0.00029817,2]
[312710299,1706179847935,-500.0,0.00029817,2]
[312710300,1706179847945,-500.0,0.00029817,2]
[312710301,1706179847954,-500.0,0.00029817,2]
[312710302,1706179847963,-500.0,0.00029817,2]
[312710303,1706179847974,-500.0,0.00029817,2]
[312710304,1706179847983,-500.0,0.00029817,2]
[312710305,1706179847992,-500.0,0.00029817,2]
[312710306,1706179848001,-500.0,0.00029817,2]
[312710307,1706179848011,-500.0,0.00029817,2]
[312710308,1706179848020,-500.0,0.00029817,2]
[312710309,1706179848030,-500.0,0.00029817,2]
[312710310,1706179848039,-500.0,0.00029817,2]
[312710311,1706179848048,-500.0,0.00029817,2]
[312710312,1706179848058,-500.0,0.00029817,2]
[312710313,1706179848068,-500.0,0.00029817,2]
[312710314,1706179848077,-500.0,0.00029817,2]
[312710315,1706179848086,-500.0,0.00029817,2]
[312710316,1706179848096,-500.0,0.00029817,2]
[312710317,1706179848105,-500.0,0.00029817,2]
[312710318,1706179848115,-500.0,0.00029817,2]
[312710319,1706179848124,-500.0,0.00029817,2]
[312710320,1706179848134,-500.0,0.00029817,2]
[312710321,1706179848143,-500.0,0.00029817,2]
[312710322,1706179848153,-500.0,0.00029817,2]
[312710323,1706179848162,-500.0,0.00029817,2]
[312710324,1706179848171,-500.0,0.00029817,2]
[312710325,1706179848180,-500.0,0.00029817,2]
[312710326,1706179848189,-500.0,0.00029817,2]
[312710327,1706179848198,-500.0,0.00029817,2]
[312710328,1706179848207,-500.0,0.00029817,2]
[312710329,1706179848217,-500.0,0.00029817,2]
[312710330,1706179848226,-500.0,0.00029817,2]
[312710331,1706179848235,-500.0,0.00029817,2]
[312710332,1706179848245,-500.0,0.00029817,2]
[312710333,1706179848254,-500.0,0.00029817,2]
[312710334,1706179848263,-500.0,0.00029817,2]
[312710335,1706179848272,-500.0,0.00029817,2]
[312710336,1706179848281,-500.0,0.00029817,2]
[312710337,1706179848290,-500.0,0.00029817,2]
[312710338,1706179848299,-500.0,0.00029817,2]
[312710339,1706179848308,-500.0,0.00029817,2]
[312710340,1706179848317,-500.0,0.00029817,2]
[312710341,1706179848326,-500.0,0.00029817,2]
[312710342,1706179848335,-500.0,0.00029817,2]
[312710343,1706179848345,-500.0,0.00029817,2]
[312710344,1706179848354,-500.0,0.00029817,2]
[312710345,1706179848363,-500.0,0.00029817,2]
[312710346,1706179848372,-500.0,0.00029817,2]
[312710347,1706179848381,-500.0,0.00029817,2]
[312710348,1706179848390,-500.0,0.00029817,2]
[312710349,1706179848399,-500.0,0.00029817,2]
[312710350,1706179848408,-500.0,0.00029817,2]
[312710351,1706179848417,-500.0,0.00029817,2]
[312710352,1706179848426,-500.0,0.00029817,2]
[312710353,1706179848435,-500.0,0.00029817,2]
[312710354,1706179848445,-500.0,0.00029817,2]
[312710355,1706179848454,-500.0,0.00029817,2]
[312710356,1706179848463,-500.0,0.00029817,2]
[312710357,1706179848476,-500.0,0.00029817,2]
[312710358,1706179848485,-500.0,0.00029817,2]
[312710359,1706179848494,-500.0,0.00029817,2]
[312710360,1706179848503,-500.0,0.00029817,2]
[312710361,1706179848512,-500.0,0.00029817,2]
[312710362,1706179848522,-500.0,0.00029817,2]
[312710363,1706179848531,-500.0,0.00029817,2]
[312710364,1706179848541,-150.0,0.00029817,2]
[312710365,1706179848552,-500.0,0.00029817,2]
[312710366,1706179848566,-500.0,0.00029817,2]
[312710367,1706179848576,-500.0,0.00029817,2]
[312710368,1706179848585,-500.0,0.00029817,2]
[312710369,1706179848595,-500.0,0.00029817,2]
[312710370,1706179848606,-500.0,0.00029817,2]
[312710371,1706179848615,-500.0,0.00029817,2]
[312710372,1706179848624,-500.0,0.00029817,2]
[312710373,1706179848633,-500.0,0.00029817,2]
[312710374,1706179848643,-500.0,0.00029817,2]
[312710375,1706179848652,-500.0,0.00029817,2]
[312710376,1706179848661,-500.0,0.00029817,2]
[312710377,1706179848670,-500.0,0.00029817,2]
[312710378,1706179848679,-500.0,0.00029817,2]
[312710379,1706179848689,-500.0,0.00029817,2]
[312710380,1706179848698,-500.0,0.00029817,2]
[312710381,1706179848707,-500.0,0.00029817,2]
[312710382,1706179848717,-500.0,0.00029817,2]
[312710383,1706179848727,-500.0,0.00029817,2]
[312710384,1706179848736,-500.0,0.00029817,2]
[312710385,1706179848745,-500.0,0.00029817,2]
[312710386,1706179848754,-500.0,0.00029817,2]
[312710387,1706179848764,-500.0,0.00029817,2]
[312710388,1706179848773,-500.0,0.00029817,2]
[312710389,1706179848782,-500.0,0.00029817,2]
[312710390,1706179848791,-500.0,0.00029817,2]
[312710391,1706179848801,-500.0,0.00029817,2]
[312710392,1706179848810,-500.0,0.00029818,2]
[312710393,1706179848819,-500.0,0.00029818,2]
[312710394,1706179848829,-500.0,0.00029818,2]
[312710395,1706179848839,-500.0,0.00029818,2]
[312710396,1706179848848,-500.0,0.00029818,2]
[312710397,1706179848857,-500.0,0.00029818,2]
[312710398,1706179848866,-500.0,0.00029818,2]
[312710399,1706179848875,-500.0,0.00029818,2]
[312710400,1706179848885,-500.0,0.00029818,2]
[312710401,1706179848894,-500.0,0.00029818,2]
[312710402,1706179848903,-500.0,0.00029818,2]
[312710403,1706179848914,-500.0,0.00029818,2]
[312710404,1706179848924,-500.0,0.00029818,2]
[312710405,1706179848933,-500.0,0.00029818,2]
[312710406,1706179848943,-500.0,0.00029818,2]
[312710407,1706179848952,-500.0,0.00029818,2]
[312710408,1706179848961,-500.0,0.00029818,2]
[312710409,1706179848973,-500.0,0.00029818,2]
[312710410,1706179848982,-500.0,0.00029818,2]
[312710411,1706179848995,-500.0,0.00029818,2]
[312710412,1706179849004,-500.0,0.00029818,2]
[312710413,1706179849160,-500.0,0.00029818,2]
[312710414,1706179849169,-500.0,0.00029818,2]
[312710415,1706179849179,-500.0,0.00029818,2]
[312710416,1706179849188,-500.0,0.00029818,2]
[312710417,1706179849198,-500.0,0.00029818,2]
[312710418,1706179849207,-500.0,0.00029818,2]
[312710419,1706179849216,-500.0,0.00029818,2]
[312710420,1706179849227,-500.0,0.00029818,2]
[312710421,1706179849236,-500.0,0.00029818,2]
[312710422,1706179849245,-500.0,0.00029818,2]
[312710423,1706179849255,-500.0,0.00029818,2]
[312710424,1706179849264,-500.0,0.00029818,2]
[312710425,1706179849273,-500.0,0.00029818,2]
[312710426,1706179849282,-500.0,0.00029818,2]
[312710427,1706179849291,-500.0,0.00029818,2]
[312710428,1706179849301,-500.0,0.00029818,2]
[312710429,1706179849310,-500.0,0.00029818,2]
[312710430,1706179849319,-500.0,0.00029818,2]
[312710431,1706179849328,-200.0,0.00029818,2]
[312710432,1706179849338,-500.0,0.00029818,2]
[312710433,1706179849348,-500.0,0.00029818,2]
[312710434,1706179849358,-500.0,0.00029818,2]
[312710435,1706179849367,-500.0,0.00029818,2]
[312710436,1706179849376,-500.0,0.00029818,2]
[312710437,1706179849385,-500.0,0.00029818,2]
[312710438,1706179849394,-500.0,0.00029818,2]
[312710439,1706179849403,-500.0,0.00029818,2]
[312710440,1706179849412,-500.0,0.00029818,2]
[312710441,1706179849421,-500.0,0.00029818,2]
[312710442,1706179849430,-500.0,0.00029818,2]
[312710443,1706179849440,-500.0,0.00029818,2]
[312710444,1706179849450,-500.0,0.00029818,2]
[312710445,1706179849459,-500.0,0.00029818,2]
[312710446,1706179849468,-500.0,0.00029818,2]
[312710447,1706179849477,-500.0,0.00029818,2]
[312710448,1706179849486,-500.0,0.00029818,2]
[312710449,1706179849495,-500.0,0.00029818,2]
[312710450,1706179849504,-500.0,0.00029818,2]
[312710451,1706179849513,-500.0,0.00029818,2]
[312710452,1706179849522,-500.0,0.00029818,2]
[312710453,1706179849531,-500.0,0.00029818,2]
[312710454,1706179849541,-500.0,0.00029818,2]
[312710455,1706179849551,-500.0,0.00029818,2]
[312710456,1706179849560,-500.0,0.00029818,2]
[312710457,1706179849572,-500.0,0.00029818,2]
[312710458,1706179849581,-500.0,0.00029818,2]
[312710459,1706179849591,-500.0,0.00029818,2]
[312710460,1706179849599,-500.0,0.00029818,2]
[312710461,1706179849611,-500.0,0.00029818,2]
[312710462,1706179849620,-500.0,0.00029818,2]
[312710463,1706179849629,-500.0,0.00029818,2]
[312710464,1706179849639,-500.0,0.00029818,2]
[312710465,1706179849648,-500.0,0.00029818,2]
[312710466,1706179849658,-500.0,0.00029818,2]
[312710467,1706179849666,-500.0,0.00029818,2]
[312710468,1706179849675,-500.0,0.00029818,2]
[312710469,1706179849685,-500.0,0.00029818,2]
[312710470,1706179849694,-500.0,0.00029818,2]
[312710471,1706179849703,-500.0,0.00029818,2]
[312710472,1706179849713,-500.0,0.00029818,2]
[312710473,1706179849723,-500.0,0.00029818,2]
[312710474,1706179849732,-500.0,0.00029818,2]
[312710475,1706179849741,-500.0,0.00029818,2]
[312710476,1706179849750,-500.0,0.00029818,2]
[312710477,1706179849759,-500.0,0.00029818,2]
[312710478,1706179849769,-500.0,0.00029818,2]
[312710479,1706179849778,-500.0,0.00029818,2]
[312710480,1706179849787,-500.0,0.00029818,2]
[312710481,1706179849796,-500.0,0.00029818,2]
[312710482,1706179849805,-500.0,0.00029818,2]
[312710483,1706179849814,-500.0,0.00029818,2]
[312710484,1706179849823,-500.0,0.00029818,2]
[312710485,1706179849832,-500.0,0.00029818,2]
[312710486,1706179849841,-500.0,0.00029818,2]
[312710487,1706179849850,-500.0,0.00029818,2]
[312710488,1706179849859,-335.87373488,0.00029818,2]
[312710489,1706179849875,-164.12626512,0.00029818,2]
[312710490,1706179849884,-500.0,0.00029818,2]
[312710491,1706179849894,-500.0,0.00029818,2]
[312710492,1706179849902,-500.0,0.00029818,2]
[312710493,1706179849911,-500.0,0.00029818,2]
[312710494,1706179849920,-500.0,0.00029818,2]
[312710495,1706179849930,-500.0,0.00029818,2]
[312710496,1706179849938,-191.12373487,0.00029818,2]
[312710497,1706179849950,-308.87626513,0.00029818,2]
[312710498,1706179849959,-500.0,0.00029818,2]
[312710499,1706179849968,-500.0,0.00029818,2]
[312710500,1706179849977,-500.0,0.00029818,2]
[312710501,1706179849986,-500.0,0.00029818,2]
[312710502,1706179849995,-500.0,0.00029818,2]
[312710503,1706179850003,-500.0,0.00029818,2]
[312710504,1706179850012,-23.53134906,0.00029818,2]
[312710505,1706179850025,-321.256936,0.00029818,2]
[312710506,1706179850045,-155.21171494,0.00029818,2]
[312710507,1706179850055,-123.11328534,0.00029818,2]
[312710508,1706179850067,-376.88671466,0.00029818,2]
[312710509,1706179850076,-500.0,0.00029818,2]
[312710510,1706179850085,-500.0,0.00029818,2]
[312710511,1706179850095,-260.58500584,0.00029818,2]
[312710512,1706179850106,-239.41499416,0.00029818,2]
[312710513,1706179850115,-306.59100584,0.00029818,2]
[312710514,1706179850126,-193.40899416,0.00029818,2]
[312710515,1706179850135,-231.99100684,0.00029818,2]
[312710516,1706179850146,-268.00899316,0.00029818,2]
[312710517,1706179850156,-500.0,0.00029818,2]
[312710518,1706179850165,-314.86590507,0.00029818,2]
[312710519,1706179880593,940.41723631,9e-05,2]
[312710520,1706179920756,902.95518781,0.000155,2]
[312710521,1706179953765,320.39018615,0.00021,2]
[312710522,1706179969148,3014.86149493,0.00021002,2]
[312710529,1706180867995,-191.81,0.00021727,2]
[312710530,1706180868023,-176.54,0.00022,2]
[312710531,1706180871146,202.35008549,0.0002189,2]
[312710532,1706180989821,177.40886258,0.00022,2]
[312710570,1706181031948,-498.73535997,0.00022542,2]
[312710571,1706181032002,-10949.26464003,0.00022542,2]
[312710572,1706181032013,-222.75436481,0.00022667,4]
[312710573,1706181032022,-145480.61699518,0.00022897,2]
[312710574,1706181032067,-383.019,0.00022897,2]
[312710575,1706181032234,-393.05108638,0.00022897,2]
[312710580,1706181037948,-7908.34698513,0.00022897,2]
[312710581,1706181037960,-921.80643042,0.00022897,2]
[312710582,1706181037975,-49578.69940289,0.00022897,2]
[312710583,1706181037985,-237.7827,0.00022897,2]
[312710584,1706181037994,-1278.5412,0.00022897,2]
[312710585,1706181038005,-8753.238,0.00022897,2]
[312710586,1706181038014,-39424.32828537,0.000229,2]
[312710587,1706181038023,-2051.39045319,0.000229,2]
[312710588,1706181038032,-1765.1580943,0.000229,2]
[312710589,1706181038046,-152.9066134,0.000229,2]
[312710590,1706181038059,-5000.0,0.000229,2]
[312710591,1706181038069,-181.89138347,0.000229,2]
[312710592,1706181038078,-1156.0984881,0.000229,2]
[312710593,1706181038088,-218.22442616,0.000229,2]
[312710594,1706181038097,-8899.14318736,0.00022998,2]
[312710595,1706181038106,-150.0,0.00022999,2]
[312710596,1706181038115,-150.0,0.00022999,2]
[312710597,1706181038124,-3047254.26007505,0.00023,2]
[312710598,1706181038134,-228319.00089898,0.00023,2]
[312710599,1706181038143,-223.07409071,0.00023,20]
[312710600,1706181038153,-4266.22639951,0.00024991,4]
[312710601,1706181038162,-1765.15809419,0.00024991,2]
[312710602,1706181038171,-450.0,0.00025,3]
[312710603,1706181038181,-534.78120717,0.00025,2]
[312710604,1706181038190,-467.54,0.00025561,2]
[312710605,1706181038199,-152.90661334,0.0002589,2]
[312710606,1706181038208,-500.0,0.00026,2]
[312710607,1706181038217,-499.99,0.00026,2]
[312710608,1706181038226,-2051.39045313,0.00026186,3]
[312710609,1706181038235,-200.0,0.00026198,2]
[312710610,1706181038244,-800.0,0.00026198,2]
[312710611,1706181038255,-207.0,0.00026974,2]
[312710612,1706181038264,-205.0,0.00026974,2]
[312710613,1706181038274,-500.0,0.00027,3]
[312710614,1706181038283,-157.96,0.0002701,2]
[312710615,1706181038292,-1765.15809419,0.00027083,2]
[312710616,1706181038302,-1000.0,0.00027115,2]
[312710617,1706181038311,-163.98,0.00027397,2]
[312710618,1706181038321,-256.52,0.00027397,2]
[312710619,1706181038330,-169.58,0.000274,2]
[312710620,1706181038340,-169.58,0.000274,2]
[312710621,1706181038349,-169.58,0.000274,2]
[312710622,1706181038358,-169.58,0.000274,2]
[312710623,1706181038368,-169.58,0.000274,2]
[312710624,1706181038377,-169.58,0.000274,2]
[312710625,1706181038386,-169.58,0.000274,2]
[312710626,1706181038396,-169.58,0.000274,2]
[312710627,1706181038405,-169.58,0.000274,2]
[312710628,1706181038414,-169.58,0.000274,2]
[312710629,1706181038423,-218.01,0.00027479,2]
[312710630,1706181038433,-250.0,0.00027479,2]
[312710631,1706181038442,-2500.0,0.00027563,3]
[312710632,1706181038451,-1872.06,0.00027617,2]
[312710633,1706181038461,-256.52,0.00027686,2]
[312710634,1706181038470,-467.54,0.00027825,2]
[312710635,1706181038479,-256.52,0.00027974,2]
[312710636,1706181038489,-2274.0,0.00028111,2]
[312710637,1706181038499,-256.52,0.00028262,2]
[312710638,1706181038509,-294.0,0.00028429,2]
[312710639,1706181038518,-210.657,0.00028429,2]
[312710640,1706181038527,-256.52,0.00028551,2]
[312710641,1706181038537,-256.52,0.00028839,2]
[312710642,1706181038546,-152.90661334,0.00028879,2]
[312710643,1706181038555,-616.39154108,0.00029,15]
[312710644,1706181038565,-55555.0,0.0002901,2]
[312710645,1706181038574,-905.515,0.00029111,2]
[312710646,1706181038584,-570.218,0.00029111,2]
[312710647,1706181038593,-1251.0,0.00029111,2]
[312710648,1706181038602,-1233.0,0.00029111,2]
[312710649,1706181038612,-775.863,0.00029111,2]
[312710650,1706181038621,-1138.0,0.00029111,2]
[312710651,1706181038630,-316.95,0.00029111,2]
[312710652,1706181038639,-256.52,0.00029128,2]
[312710653,1706181038648,-1765.15809419,0.00029174,2]
[312710654,1706181038658,-256.52,0.00029416,2]
[312710655,1706181038667,-2051.39045313,0.00029473,4]
[312710656,1706181038676,-256.52,0.00029704,2]
[312710657,1706181038686,-207.0,0.00029726,6]
[312710658,1706181038695,-3301.0962401,0.00029817,2]
[312710659,1706181038704,-229.57187333,0.00029818,2]
[312710660,1706181038717,-544.93064915,0.00029818,7]
[312710661,1706181038727,-764.0513406,0.00029858,2]
[312710662,1706181038737,-1750.8158809,0.00029858,2]
[312710663,1706181038746,-36592.5447205,0.00029878,2]
[312710664,1706181038756,-47122.3388822,0.00029979,2]
[312710665,1706181038765,-273.99,0.00029993,2]
[312710666,1706181038775,-256.52,0.00029993,2]
[312710667,1706181038785,-155.0,0.0003,2]
[312710668,1706181038794,-1464.97539813,0.0003,2]
[312710669,1706181038803,-1001.4,0.0003,2]
[312710670,1706181038813,-9453.87,0.0003,4]
[312710671,1706181038822,-628.65728134,0.0003,4]
[312710672,1706181038831,-2924.55737211,0.0003,2]
[312710673,1706181038840,-2118.11398,0.0003,2]
[312710674,1706181038850,-467.54,0.00030089,2]
[312710675,1706181038859,-376.0,0.000302,2]
[312710676,1706181038868,-273.99,0.00030281,2]
[312710677,1706181038877,-256.52,0.00030281,2]
[312710678,1706181038887,-1000.0,0.00030504,2]
[312710679,1706181038896,-273.99,0.00030569,2]
[312710680,1706181038905,-256.52,0.00030569,2]
[312710681,1706181038914,-273.99,0.00030858,2]
[312710682,1706181038923,-256.52,0.00030858,2]
[312710683,1706181038932,-273.99,0.00031146,2]
[312710684,1706181038942,-256.52,0.00031146,2]
[312710685,1706181038951,-1765.15809419,0.00031265,2]
[312710686,1706181038960,-150.0,0.00031429,2]
[312710687,1706181038970,-273.99,0.00031435,2]
[312710688,1706181038980,-256.52,0.00031435,2]
[312710689,1706181038990,-1156.09848808,0.00031584,2]